bitfinex-derivatives/quotes_BTCF0:USTF0_20251028
["timestamp","ask_amount","ask_price","bid_price","bid_amount"]
[1761691905662,0.73128906,113250.0,113240.0,0.13288]
[1761691906058,0.73128906,113250.0,113240.0,0.13388]
[1761691906665,0.73128906,113250.0,113240.0,0.13488]
[1761691907662,0.73128906,113250.0,113240.0,0.13388]
[1761691909463,0.73128906,113250.0,113240.0,0.001]
[1761691913066,0.73392906,113250.0,113240.0,0.001]
[1761691913262,0.73128906,113250.0,113240.0,0.001]
[1761691914663,0.73392906,113250.0,113240.0,0.001]
[1761691914863,0.73128906,113250.0,113240.0,0.001]
[1761691915770,1.09208906,113250.0,113240.0,0.001]
[1761691916767,0.78334,113250.0,113240.0,0.001]
[1761691916975,1.09208906,113250.0,113240.0,0.001]
[1761691920078,1.08944906,113250.0,113240.0,0.001]
[1761691920277,1.09208906,113250.0,113240.0,0.001]
[1761691921976,1.11606368,113250.0,113240.0,0.001]
[1761691923974,1.24890368,113250.0,113240.0,0.001]
[1761691932989,1.11606368,113250.0,113240.0,0.04383]
[1761691933195,0.93507453,113250.0,113240.0,0.04383]
[1761691933597,0.7807,113250.0,113240.0,0.04383]
[1761691933899,0.93507453,113250.0,113240.0,0.04383]
[1761691934898,0.93507453,113250.0,113240.0,0.19820453]
[1761691935197,0.93507453,113250.0,113240.0,0.04383]
[1761691937191,0.93507453,113250.0,113240.0,0.28650643]
[1761691937398,0.57257453,113260.0,113250.0,0.04283]
[1761691937602,0.57257453,113260.0,113250.0,0.19720453]
[1761691938189,0.57257453,113260.0,113250.0,0.28549873]
[1761691938392,0.57257453,113260.0,113250.0,0.19720453]
[1761691938690,0.57257453,113260.0,113250.0,0.19820453]
[1761691938893,0.57457453,113260.0,113250.0,0.19820453]
[1761691939292,0.4202,113260.0,113250.0,0.19820453]
[1761691939497,0.57457453,113260.0,113250.0,0.19820453]
[1761691939900,0.57257453,113260.0,113250.0,0.19820453]
[1761691940497,0.4182,113260.0,113250.0,0.04283]
[1761691940798,0.57257453,113260.0,113250.0,0.19820453]
[1761691941199,0.4182,113260.0,113250.0,0.04383]
[1761691941501,0.72694906,113260.0,113250.0,0.17667]
[1761691943898,0.4182,113260.0,113250.0,0.17667]
[1761691944094,0.72694906,113260.0,113250.0,0.17667]
[1761691944295,0.72958906,113260.0,113250.0,0.17667]
[1761691944493,0.72694906,113260.0,113250.0,0.17667]
[1761691945100,0.72958906,113260.0,113250.0,0.17667]
[1761691945708,0.42084,113260.0,113250.0,0.17667]
[1761691945910,0.72958906,113260.0,113250.0,0.17667]
[1761691946409,0.72694906,113260.0,113250.0,0.17667]
[1761691947202,0.72958906,113260.0,113250.0,0.17667]
[1761691947403,0.57524767,113260.0,113250.0,0.17667]
[1761691947906,0.57260767,113260.0,113250.0,0.17667]
[1761691948206,0.57524767,113260.0,113250.0,0.17667]
[1761691948709,0.57260767,113260.0,113250.0,0.17667]
[1761691950210,0.57524767,113260.0,113250.0,0.17667]
[1761691953815,0.57524767,113260.0,113250.0,0.04383]
[1761691954120,0.57524767,113260.0,113250.0,0.17663]
[1761691961020,0.57524767,113260.0,113250.0,0.17659]
[1761691962621,0.42084,113260.0,113250.0,0.17659]
[1761691962807,0.57524767,113260.0,113250.0,0.17659]
[1761691964819,0.21444767,113260.0,113250.0,0.17659]
[1761691965021,0.57524767,113260.0,113250.0,0.17659]
[1761691966129,0.57524767,113260.0,113250.0,0.001]
[1761691966510,0.72965534,113260.0,113250.0,0.13376]
[1761691966710,0.57524767,113260.0,113250.0,0.13376]
[1761691967024,0.57524767,113260.0,113250.0,0.001]
[1761691967724,0.57724767,113260.0,113250.0,0.001]
[1761691968021,0.73165534,113260.0,113250.0,0.001]
[1761691968318,0.05681,113250.0,113240.0,0.13276]
[1761691968515,0.72906534,113250.0,113240.0,0.13276]
[1761691969121,0.57465767,113250.0,113240.0,0.13276]
[1761691969314,0.57201767,113250.0,113240.0,0.17573]
[1761691971025,0.57201767,113250.0,113240.0,0.17673]
[1761691971906,0.57465767,113250.0,113240.0,0.17673]
[1761691972116,0.57201767,113250.0,113240.0,0.17673]
[1761691972318,0.57465767,113250.0,113240.0,0.17673]
[1761691975422,0.57465767,113250.0,113240.0,0.15511]
[1761691976921,0.57465767,113250.0,113240.0,0.13376]
[1761691980220,0.72906534,113250.0,113240.0,0.001]
[1761691980416,0.04394,113230.0,113220.0,0.21184441]
[1761691980619,0.05681,113210.0,113200.0,0.68188153]
[1761691980927,0.05681,113210.0,113200.0,0.70394241]
[1761691981120,0.05681,113210.0,113200.0,0.85835008]
[1761691981424,0.05681,113210.0,113200.0,0.70394241]
[1761691981824,0.05681,113210.0,113200.0,0.34314241]
[1761691982526,0.05681,113210.0,113200.0,0.27269749]
[1761691983128,0.05681,113210.0,113200.0,0.27869749]
[1761691984031,0.05681,113210.0,113200.0,0.28069749]
[1761691985421,0.05681,113210.0,113200.0,0.3597819]
[1761691986031,0.05681,113210.0,113200.0,0.9597819]
[1761691986233,0.05681,113210.0,113200.0,0.3597819]
[1761691989836,0.21121767,113210.0,113200.0,0.8714539]
[1761691990031,0.21121767,113210.0,113200.0,0.79236949]
[1761691990534,0.57201767,113210.0,113200.0,0.79236949]
[1761691990734,0.41761,113210.0,113200.0,0.79236949]
[1761691991634,0.41761,113210.0,113200.0,0.19236949]
[1761691992438,0.41761,113210.0,113200.0,0.2714539]
[1761691992629,0.41761,113210.0,113200.0,0.19236949]
[1761691993836,0.41761,113210.0,113200.0,0.28070259]
[1761691996641,0.41761,113210.0,113200.0,0.88070259]
[1761692000347,0.40474,113210.0,113200.0,0.89078259]
[1761692000547,0.41752,113210.0,113200.0,0.88070259]
[1761692000948,0.41752,113210.0,113200.0,1.03511026]
[1761692001837,0.41752,113210.0,113200.0,0.88070259]
[1761692004553,0.37367,113220.0,113200.0,0.88070259]
[1761692004850,0.41747,113220.0,113210.0,0.04266]
[1761692005846,0.41747,113220.0,113210.0,0.19706767]
[1761692006154,0.05667,113220.0,113210.0,0.1309853]
[1761692006453,0.05667,113220.0,113210.0,0.1329853]
[1761692006752,0.05667,113220.0,113210.0,0.1369853]
[1761692006943,0.41747,113220.0,113210.0,0.04866]
[1761692008347,0.41747,113220.0,113210.0,0.1369853]
[1761692009152,0.41747,113220.0,113210.0,0.04866]
[1761692009359,0.57195934,113220.0,113210.0,0.04866]
[1761692009657,0.72644868,113220.0,113210.0,0.04866]
[1761692013260,0.57195934,113220.0,113210.0,0.04866]
[1761692013869,0.57195934,113220.0,113210.0,0.04666]
[1761692014168,0.57195934,113220.0,113210.0,0.04766]
[1761692014366,0.57195934,113220.0,113210.0,0.02617]
[1761692014367,0.72908868,113220.0,113210.0,0.02617]
[1761692014662,0.72908868,113220.0,113210.0,0.005]
[1761692015058,0.72908868,113220.0,113210.0,0.02645]
[1761692015362,0.72908868,113220.0,113210.0,0.02345]
[1761692015865,0.72908868,113220.0,113210.0,0.02245]
[1761692016364,0.72908868,113220.0,113210.0,0.001]
[1761692016566,0.72908868,113220.0,113210.0,0.04517]
[1761692019466,0.72644868,113220.0,113210.0,0.04517]
[1761692020170,0.57195934,113220.0,113210.0,0.04517]
[1761692020555,0.05667,113220.0,113210.0,0.19965934]
[1761692020870,0.05667,113220.0,113210.0,0.64878464]
[1761692021456,0.05698,113230.0,113220.0,0.04417]
[1761692021662,0.21146934,113230.0,113220.0,0.33145934]
[1761692022768,0.21346934,113230.0,113220.0,0.33145934]
[1761692023959,0.05898,113230.0,113220.0,0.33145934]
[1761692024268,0.21346934,113230.0,113220.0,0.33145934]
[1761692024465,0.21346934,113230.0,113220.0,0.33245934]
[1761692024670,0.21146934,113230.0,113220.0,0.33245934]
[1761692025271,0.05698,113230.0,113220.0,0.33245934]
[1761692025469,0.21146934,113230.0,113220.0,0.42077684]
[1761692026272,0.21146934,113230.0,113220.0,0.78157684]
[1761692028776,0.05698,113230.0,113220.0,0.78157684]
[1761692028971,0.21146934,113230.0,113220.0,0.78157684]
[1761692029873,0.05698,113230.0,113220.0,0.78157684]
[1761692030469,0.21146934,113230.0,113220.0,0.78157684]
[1761692033872,0.57226934,113230.0,113220.0,0.42077684]
[1761692034074,0.21146934,113230.0,113220.0,0.42077684]
[1761692034270,0.21146934,113230.0,113220.0,0.17797]
[1761692034471,0.21146934,113230.0,113220.0,0.15525]
[1761692034666,0.57490934,113230.0,113220.0,0.15525]
[1761692034979,0.57490934,113230.0,113220.0,0.17797]
[1761692044281,0.57490934,113230.0,113220.0,0.15525]
[1761692044479,0.72939868,113230.0,113220.0,0.001]
[1761692044784,0.72939868,113230.0,113220.0,0.1338]
[1761692045583,0.72675868,113230.0,113220.0,0.1338]
[1761692045983,0.72939868,113230.0,113220.0,0.1338]
[1761692049694,0.72675868,113230.0,113220.0,0.1338]
[1761692058101,0.72939868,113230.0,113220.0,0.1338]
[1761692059498,0.05744,113200.0,113190.0,0.21272166]
[1761692059703,0.72985868,113200.0,113190.0,0.34551183]
[1761692059897,0.57536934,113200.0,113190.0,0.26643725]
[1761692060098,0.57272934,113200.0,113190.0,0.26643725]
[1761692060703,0.57272934,113200.0,113190.0,0.26843725]
[1761692060902,0.57272934,113200.0,113190.0,0.3515074]
[1761692063102,0.57536934,113200.0,113190.0,0.3515074]
[1761692063504,0.57536934,113200.0,113190.0,0.36036517]
[1761692064394,0.57536934,113200.0,113190.0,0.27202967]
[1761692064805,0.57536934,113200.0,113190.0,0.87202967]
[1761692065307,0.42088,113200.0,113190.0,0.87202967]
[1761692065606,0.57536934,113200.0,113190.0,0.87202967]
[1761692065801,0.57272934,113200.0,113190.0,0.87202967]
[1761692066001,0.57536934,113200.0,113190.0,0.96037087]
[1761692066597,0.57272934,113200.0,113190.0,0.96037087]
[1761692067601,0.57536934,113200.0,113190.0,0.96037087]
[1761692068307,0.57536934,113200.0,113190.0,1.11486021]
[1761692068609,0.42088,113200.0,113190.0,1.11486021]
[1761692068798,0.57272934,113200.0,113190.0,1.11486021]
[1761692069708,0.41824,113200.0,113190.0,1.11486021]
[1761692070410,0.41824,113200.0,113190.0,1.03579006]
[1761692070811,0.05744,113200.0,113190.0,1.03579006]
[1761692071000,0.41824,113210.0,113200.0,0.04522]
[1761692071200,0.57272934,113210.0,113200.0,0.27872859]
[1761692071407,0.41824,113210.0,113200.0,0.12423925]
[1761692072110,0.41824,113210.0,113200.0,0.12523925]
[1761692072307,0.41824,113210.0,113200.0,0.04622]
[1761692072709,0.05744,113210.0,113200.0,0.1345534]
[1761692073102,0.05744,113210.0,113200.0,0.1365534]
[1761692073501,0.05744,113210.0,113200.0,0.65185731]
[1761692073902,0.05744,113210.0,113200.0,0.4973534]
[1761692077017,0.05744,113210.0,113200.0,0.40902]
[1761692077316,0.41824,113210.0,113200.0,0.04822]
[1761692077614,0.05744,113210.0,113200.0,0.1365531]
[1761692078716,0.41824,113210.0,113200.0,0.1365531]
[1761692080401,0.41824,113210.0,113200.0,0.21557235]
[1761692080816,0.05744,113210.0,113200.0,0.21557235]
[1761692081922,0.39756,113240.0,113230.0,0.02249]
[1761692082115,0.05897,113240.0,113230.0,0.42046361]
[1761692082414,0.05827,113240.0,113230.0,0.53845]
[1761692082714,0.05827,113240.0,113230.0,0.6267597]
[1761692083209,0.06027,113240.0,113230.0,0.6267597]
[1761692084211,0.05927,113240.0,113230.0,0.6267597]
[1761692084812,0.05927,113240.0,113230.0,0.6277597]
[1761692085719,0.05827,113240.0,113230.0,0.6277597]
[1761692086014,0.05827,113240.0,113230.0,0.6287597]
[1761692086216,0.21541391,113240.0,113230.0,0.2679597]
[1761692088118,0.21541391,113240.0,113230.0,0.17965]
[1761692088515,0.21541391,113240.0,113230.0,0.2679597]
[1761692089114,0.21541391,113240.0,113230.0,0.17965]
[1761692090017,0.57621391,113240.0,113230.0,0.17965]
[1761692090718,0.57621391,113240.0,113230.0,0.15729]
[1761692091420,0.57621391,113240.0,113230.0,0.15629]
[1761692091620,0.57621391,113240.0,113230.0,0.15729]
[1761692092319,0.57621391,113240.0,113230.0,0.17965]
[1761692092704,0.57721391,113240.0,113230.0,0.17865]
[1761692099432,0.57721391,113240.0,113230.0,0.1338]
[1761692101226,0.57721391,113240.0,113230.0,0.17865]
[1761692101825,0.73171782,113240.0,113230.0,0.001]
[1761692102030,0.05827,113210.0,113200.0,1.05814705]
[1761692102229,0.21541391,113210.0,113200.0,1.02372]
[1761692102725,0.21541391,113210.0,113200.0,0.70777]
[1761692103131,0.21277391,113210.0,113200.0,0.70977]
[1761692103321,0.21277391,113210.0,113200.0,0.71377]
[1761692103726,0.05827,113210.0,113200.0,0.18377]
[1761692103931,0.05827,113210.0,113200.0,0.2721035]
[1761692104622,0.05827,113210.0,113200.0,0.6429835]
[1761692104623,0.0452,113210.0,113200.0,0.6429835]
[1761692106232,0.0452,113210.0,113200.0,0.72200275]
[1761692107028,0.0452,113210.0,113200.0,0.72200255]
[1761692107232,0.0452,113210.0,113200.0,0.35112255]
[1761692107233,0.05784,113210.0,113200.0,0.35112255]
[1761692107629,0.05784,113210.0,113200.0,0.2721033]
[1761692111534,0.05784,113210.0,113200.0,0.42660721]
[1761692112343,0.0452,113210.0,113200.0,0.79748721]
[1761692113437,0.0452,113210.0,113200.0,0.6429833]
[1761692113639,0.059,113210.0,113200.0,0.6329033]
[1761692113943,0.059,113210.0,113200.0,0.2721033]
[1761692115632,0.06164,113210.0,113200.0,0.18377]
[1761692116127,0.06164,113210.0,113200.0,0.38280232]
[1761692117833,0.06164,113210.0,113200.0,0.46178665]
[1761692118029,0.06164,113210.0,113200.0,0.35108753]
[1761692118430,0.06164,113210.0,113200.0,0.2721032]
[1761692120740,0.059,113210.0,113200.0,0.2721032]
[1761692124042,0.0452,113210.0,113200.0,0.79748711]
[1761692125242,0.03084615,113210.0,113200.0,0.79748711]
[1761692125743,0.03084615,113210.0,113200.0,0.90818623]
[1761692127942,0.41811,113220.0,113210.0,0.1462353]
[1761692128138,0.04424,113220.0,113210.0,0.37977334]
[1761692128340,0.04424,113220.0,113210.0,0.74057334]
[1761692128535,0.04424,113220.0,113210.0,0.74058191]
[1761692128736,0.04424,113230.0,113220.0,0.1434175]
[1761692128944,0.04424,113230.0,113220.0,0.2762975]
[1761692129142,0.40504,113230.0,113220.0,0.2762975]
[1761692129541,0.04424,113230.0,113220.0,0.2762975]
[1761692130939,0.04424,113230.0,113220.0,0.2772975]
[1761692131141,0.04424,113230.0,113220.0,0.2782975]
[1761692131344,0.1986901,113230.0,113220.0,0.4327476]
[1761692132043,0.04424,113230.0,113220.0,0.4327476]
[1761692132247,0.1986901,113230.0,113220.0,0.4327476]
[1761692132447,0.04424,113230.0,113220.0,0.4327476]
[1761692133652,0.04424,113230.0,113220.0,0.7935476]
[1761692134953,0.04424,113230.0,113220.0,0.4327476]
[1761692135151,0.04424,113230.0,113220.0,0.7935476]
[1761692135543,0.40526,113240.0,113230.0,0.1427297]
[1761692135752,0.5735101,113250.0,113240.0,0.05442]
[1761692136048,0.5761501,113250.0,113240.0,0.1873]
[1761692136254,0.5761501,113250.0,113240.0,0.17722]
[1761692138055,0.5781501,113250.0,113240.0,0.17722]
[1761692138455,0.5781501,113250.0,113240.0,0.265522]
[1761692138755,0.5771501,113250.0,113240.0,0.265522]
[1761692139056,0.5771501,113250.0,113240.0,0.27456646]
[1761692139556,0.5771501,113250.0,113240.0,0.27556646]
[1761692142358,0.60115696,113250.0,113240.0,0.27556646]
[1761692142557,0.2163501,113250.0,113240.0,0.27556646]
[1761692142763,0.60115644,113250.0,113240.0,0.27556646]
[1761692143364,0.60115519,113250.0,113240.0,0.27556646]
[1761692143863,0.60115519,113250.0,113240.0,0.43001656]
[1761692144263,0.59851519,113250.0,113240.0,0.43001656]
[1761692144566,0.5745101,113250.0,113240.0,0.43001656]
[1761692144961,0.42006,113250.0,113240.0,0.43001656]
[1761692145166,0.5745101,113250.0,113240.0,0.43001656]
[1761692145471,0.5745101,113250.0,113240.0,0.27556646]
[1761692145674,0.5771501,113250.0,113240.0,0.18726446]
[1761692145872,0.5771501,113250.0,113240.0,0.27556626]
[1761692146076,0.5745101,113250.0,113240.0,0.27556626]
[1761692146873,0.2137101,113250.0,113240.0,0.27556626]
[1761692147072,0.2137101,113250.0,113240.0,0.43001636]
[1761692147675,0.2137101,113250.0,113240.0,0.27556626]
[1761692147876,0.2137101,113250.0,113240.0,0.34171456]
[1761692147877,0.5745101,113250.0,113240.0,0.34171456]
[1761692148275,0.2137101,113250.0,113240.0,0.18726446]
[1761692148474,0.2137101,113250.0,113240.0,0.27556626]
[1761692148678,0.2137101,113250.0,113240.0,0.43001636]
[1761692149579,0.2137101,113250.0,113240.0,0.28564626]
[1761692149776,0.2137101,113250.0,113240.0,0.44009636]
[1761692155067,0.04546,113250.0,113240.0,0.44009636]
[1761692155468,0.1999101,113250.0,113240.0,0.44009636]
[1761692155670,0.001,113250.0,113240.0,0.44009636]
[1761692155972,0.04546,113250.0,113240.0,0.44009636]
[1761692160073,0.04446,113250.0,113240.0,0.44009636]
[1761692160276,0.04446,113250.0,113240.0,0.44109636]
[1761692162184,0.0471,113250.0,113240.0,0.44109636]
[1761692162488,0.1989101,113250.0,113240.0,0.44109636]
[1761692165384,0.1989101,113250.0,113240.0,0.52013906]
[1761692166186,0.1989101,113250.0,113240.0,0.44109636]
[1761692166387,0.2150601,113250.0,113240.0,0.27656646]
[1761692166693,0.5758601,113250.0,113240.0,0.27656646]
[1761692167581,0.2150601,113250.0,113240.0,0.27656646]
[1761692167782,0.2150601,113250.0,113240.0,0.43101656]
[1761692168187,0.2150601,113250.0,113240.0,0.27656646]
[1761692168393,0.2150601,113250.0,113240.0,0.43101656]
[1761692170596,0.06061,113250.0,113240.0,0.43101656]
[1761692170792,0.2150601,113250.0,113240.0,0.43101656]
[1761692171096,0.5758601,113250.0,113240.0,0.43101656]
[1761692173098,0.2150601,113250.0,113240.0,0.43101656]
[1761692173703,0.2150601,113250.0,113240.0,0.79181656]
[1761692173887,0.04446,113250.0,113240.0,0.80189656]
[1761692174197,0.0223,113250.0,113240.0,0.95634666]
[1761692174697,0.04339,113260.0,113250.0,0.1458042]
[1761692174900,0.04339,113260.0,113250.0,0.6610543]
[1761692175987,0.04439,113260.0,113250.0,0.6620543]
[1761692176388,0.001,113260.0,113250.0,0.6620543]
[1761692177002,0.2116401,113270.0,113260.0,0.05599]
[1761692177210,0.2116401,113270.0,113260.0,0.3432001]
[1761692177800,0.04339,113270.0,113260.0,0.4314867]
[1761692179100,0.04339,113270.0,113260.0,0.4324867]
[1761692179403,0.04439,113270.0,113260.0,0.4324867]
[1761692180195,0.04439,113270.0,113260.0,0.7932867]
[1761692180599,0.04439,113270.0,113260.0,0.4324867]
[1761692181197,0.05787,113270.0,113260.0,0.3442001]
[1761692181395,0.5757601,113270.0,113260.0,0.17829]
[1761692182804,0.42131,113270.0,113260.0,0.17829]
[1761692182993,0.5757601,113270.0,113260.0,0.2665766]
[1761692183190,0.5757601,113270.0,113260.0,0.4210267]
[1761692183894,0.40783,113270.0,113260.0,0.4324867]
[1761692184204,0.38319,113270.0,113260.0,0.5869368]
[1761692184503,0.02239,113270.0,113260.0,0.9477368]
[1761692184702,0.04439,113270.0,113260.0,0.9477368]
[1761692185088,0.001,113270.0,113260.0,0.9477368]
[1761692185503,0.02239,113270.0,113260.0,0.9477368]
[1761692186004,0.04439,113270.0,113260.0,0.9477368]
[1761692186702,0.04439,113270.0,113260.0,0.5869368]
[1761692186905,0.04703,113270.0,113260.0,0.9477368]
[1761692187103,0.04439,113270.0,113260.0,0.9477368]
[1761692188000,0.04703,113270.0,113260.0,0.9477368]
[1761692188698,0.04439,113270.0,113260.0,0.9477368]
[1761692188895,0.04703,113270.0,113260.0,0.5869368]
[1761692189091,0.04439,113270.0,113260.0,0.9477368]
[1761692189396,0.04703,113270.0,113260.0,0.9477368]
[1761692190200,0.04439,113270.0,113260.0,0.9477368]
[1761692190404,0.04703,113270.0,113260.0,0.9477368]
[1761692190599,0.04439,113270.0,113260.0,0.9477368]
[1761692190802,0.04703,113270.0,113260.0,0.9477368]
[1761692191310,0.04439,113270.0,113260.0,0.79316438]
[1761692192200,0.04703,113270.0,113260.0,0.79316438]
[1761692192405,0.04439,113270.0,113260.0,0.79316438]
[1761692192598,0.04703,113270.0,113260.0,0.79316438]
[1761692192906,0.04439,113270.0,113260.0,0.79316438]
[1761692193094,0.04703,113270.0,113260.0,0.79316438]
[1761692193296,0.04703,113270.0,113260.0,0.79320438]
[1761692193697,0.04439,113270.0,113260.0,0.79320438]
[1761692194906,0.04703,113270.0,113260.0,0.79320438]
[1761692195206,0.04439,113270.0,113260.0,0.79320438]
[1761692195602,0.04703,113270.0,113260.0,0.79320438]
[1761692196508,0.04439,113270.0,113260.0,0.79320438]
[1761692196710,0.04703,113270.0,113260.0,0.79320438]
[1761692197003,0.04439,113270.0,113260.0,0.79320438]
[1761692197196,0.04703,113270.0,113260.0,0.79320438]
[1761692197509,0.04703,113270.0,113260.0,0.6388766]
[1761692197709,0.04439,113270.0,113260.0,0.43236438]
[1761692197915,0.04703,113270.0,113260.0,0.43236438]
[1761692199006,0.04439,113270.0,113260.0,0.43236438]
[1761692200401,0.04703,113270.0,113260.0,0.43236438]
[1761692200598,0.06069,113270.0,113260.0,0.2780366]
[1761692200797,0.06069,113270.0,113260.0,0.2665772]
[1761692201204,0.21501778,113270.0,113260.0,0.04553]
[1761692201404,0.21501778,113270.0,113260.0,0.17829]
[1761692202206,0.21237778,113270.0,113260.0,0.17829]
[1761692206913,0.21237778,113270.0,113260.0,0.17729]
[1761692207115,0.21237778,113270.0,113260.0,0.17829]
[1761692207715,0.21137778,113270.0,113260.0,0.17829]
[1761692208012,0.21137778,113270.0,113260.0,0.17929]
[1761692208208,0.21401778,113270.0,113260.0,0.17929]
[1761692208416,0.21137778,113270.0,113260.0,0.17929]
[1761692208615,0.21401778,113270.0,113260.0,0.17929]
[1761692208818,0.21137778,113270.0,113260.0,0.17929]
[1761692209007,0.21401778,113270.0,113260.0,0.17929]
[1761692210403,0.21137778,113270.0,113260.0,0.17929]
[1761692211216,0.57217778,113270.0,113260.0,0.13476]
[1761692211411,0.57217778,113270.0,113260.0,0.002]
[1761692211612,0.57217778,113270.0,113260.0,0.13476]
[1761692212116,0.57217778,113270.0,113260.0,0.15766]
[1761692212516,0.57317778,113270.0,113260.0,0.15566]
[1761692213318,0.57317778,113270.0,113260.0,0.13276]
[1761692213619,0.05761,113250.0,113240.0,0.13263716]
[1761692213807,0.21193778,113250.0,113240.0,0.26539716]
[1761692214004,0.21193778,113250.0,113240.0,0.18635446]
[1761692214420,0.21193778,113250.0,113240.0,0.05359446]
[1761692214622,0.21193778,113250.0,113240.0,0.18635446]
[1761692214819,0.21193778,113250.0,113240.0,0.17731]
[1761692215220,0.21193778,113250.0,113240.0,0.17931]
[1761692215620,0.21193778,113250.0,113240.0,0.18031]
[1761692215922,0.57273778,113250.0,113240.0,0.18031]
[1761692216117,0.57273778,113250.0,113240.0,0.18894498]
[1761692216419,0.41841,113250.0,113240.0,0.17931]
[1761692216622,0.57273778,113250.0,113240.0,0.17931]
[1761692218817,0.57273778,113250.0,113240.0,0.188357]
[1761692220207,0.57273778,113250.0,113240.0,0.17931]
[1761692220410,0.72706556,113250.0,113240.0,0.002]
[1761692220717,0.72706556,113250.0,113240.0,0.13476]
[1761692221525,0.72706556,113250.0,113240.0,0.13376]
[1761692221719,0.72806556,113250.0,113240.0,0.13276]
[1761692223023,0.7369754,113250.0,113240.0,0.13276]
[1761692224126,0.7396154,113250.0,113240.0,0.13276]
[1761692225627,0.7369754,113250.0,113240.0,0.13276]
[1761692225828,1.0977754,113250.0,113240.0,0.13276]
[1761692227730,0.3761754,113250.0,113240.0,0.13276]
[1761692227926,1.0977754,113250.0,113240.0,0.13276]
[1761692229132,0.3761754,113250.0,113240.0,0.13276]
[1761692229438,1.0977754,113250.0,113240.0,0.13276]
[1761692232931,0.3761754,113250.0,113240.0,0.13276]
[1761692233232,1.0977754,113250.0,113240.0,0.13276]
[1761692234040,0.78021,113250.0,113240.0,0.17599]
[1761692234335,0.93453778,113250.0,113240.0,0.17599]
[1761692243335,0.78021,113250.0,113240.0,0.17599]
[1761692243538,0.93453778,113250.0,113240.0,0.17599]
[1761692249041,0.93453778,113250.0,113240.0,0.15489]
[1761692250341,0.93717778,113250.0,113240.0,0.15489]
[1761692251244,0.93717778,113250.0,113240.0,0.17599]
[1761692253452,0.93728294,113250.0,113240.0,0.17599]
[1761692255151,0.93728294,113250.0,113240.0,0.15489]
[1761692255349,0.96115394,113250.0,113240.0,0.13276]
[1761692257850,0.96115394,113250.0,113240.0,0.15382]
[1761692262161,0.93728294,113250.0,113240.0,0.15382]
[1761692262751,0.93728294,113250.0,113240.0,0.17681]
[1761692265465,0.93728294,113250.0,113240.0,0.13276]
[1761692265761,0.93728294,113250.0,113240.0,0.15382]
[1761692265968,0.96106027,113250.0,113240.0,0.15382]
[1761692266655,0.96106027,113250.0,113240.0,0.17681]
[1761692267961,0.93728294,113250.0,113240.0,0.17681]
[1761692274968,0.93728294,113250.0,113240.0,0.33124294]
[1761692274969,0.93464294,113250.0,113240.0,0.33124294]
[1761692275363,0.93464294,113250.0,113240.0,0.17681]
[1761692275559,0.57384294,113250.0,113240.0,0.33124294]
[1761692275869,0.57384294,113250.0,113240.0,0.17681]
[1761692276069,0.57384294,113250.0,113240.0,0.41954544]
[1761692276272,0.57384294,113250.0,113240.0,0.17681]
[1761692277173,0.57648294,113250.0,113240.0,0.17681]
[1761692281875,0.21568294,113250.0,113240.0,0.17681]
[1761692282074,0.57648294,113250.0,113240.0,0.17681]
[1761692283479,0.57384294,113250.0,113240.0,0.41954534]
[1761692285481,0.41941,113250.0,113240.0,0.41954534]
[1761692285777,0.57384294,113250.0,113240.0,0.41954534]
[1761692286373,0.57384294,113250.0,113240.0,0.17681]
[1761692287780,0.57648294,113250.0,113240.0,0.17681]
[1761692287979,0.41941,113250.0,113240.0,0.33124294]
[1761692288177,0.57384294,113250.0,113240.0,0.33124294]
[1761692288683,0.57648294,113250.0,113240.0,0.17681]
[1761692288878,0.57384294,113250.0,113240.0,0.17681]
[1761692290582,0.57648294,113250.0,113240.0,0.17681]
[1761692293589,0.57384294,113250.0,113240.0,0.41954534]
[1761692293780,0.41941,113250.0,113240.0,0.41954534]
[1761692295187,0.41941,113250.0,113240.0,0.57661828]
[1761692295377,0.05861,113250.0,113240.0,0.42962534]
[1761692297285,0.001,113250.0,113240.0,0.43226534]
[1761692297487,0.001,113250.0,113240.0,1.02654098]
[1761692298590,0.05907,113270.0,113260.0,0.1325269]
[1761692298780,0.05907,113270.0,113260.0,0.41975984]
[1761692299792,0.05907,113270.0,113260.0,0.78155984]
[1761692299986,0.05907,113270.0,113260.0,0.78255984]
[1761692300188,0.05907,113270.0,113260.0,0.6281269]
[1761692300493,0.05907,113270.0,113260.0,0.78255984]
[1761692301490,0.21350294,113270.0,113260.0,0.78255984]
[1761692303195,0.21350294,113270.0,113260.0,0.6281269]
[1761692303494,0.21350294,113270.0,113260.0,0.78255984]
[1761692306488,0.73137588,113270.0,113260.0,0.002]
[1761692306694,0.75438899,113270.0,113260.0,0.1348]
[1761692307692,0.75438899,113270.0,113260.0,0.1338]
[1761692308291,0.75438899,113270.0,113260.0,0.001]
[1761692308495,0.75702899,113270.0,113260.0,0.001]
[1761692309198,0.05855,113260.0,113250.0,0.17704]
[1761692309395,0.73085588,113260.0,113250.0,0.1328]
[1761692309792,0.05855,113250.0,113240.0,0.17704]
[1761692309993,0.57642294,113250.0,113240.0,0.17704]
[1761692311592,0.57642294,113250.0,113240.0,0.15422]
[1761692311802,0.57642294,113250.0,113240.0,0.15522]
[1761692312000,0.73085588,113250.0,113240.0,0.15522]
[1761692312192,0.73085588,113250.0,113240.0,0.15622]
[1761692312501,0.57642294,113250.0,113240.0,0.15622]
[1761692312707,0.57642294,113250.0,113240.0,0.15522]
[1761692312890,0.57642294,113250.0,113240.0,0.17804]
[1761692313291,0.57644011,113250.0,113240.0,0.17804]
[1761692314403,0.57644011,113250.0,113240.0,0.17704]
[1761692320403,0.57644011,113250.0,113240.0,0.17804]
[1761692320606,0.57644011,113250.0,113240.0,0.17904]
[1761692325115,0.42199,113250.0,113240.0,0.17904]
[1761692325407,0.57644011,113250.0,113240.0,0.17904]
[1761692329105,0.42199,113250.0,113240.0,0.17904]
[1761692329306,0.57644011,113250.0,113240.0,0.17904]
[1761692331214,0.57380011,113250.0,113240.0,0.17904]
[1761692332213,0.57644011,113250.0,113240.0,0.17904]
[1761692336316,0.57644011,113250.0,113240.0,0.24219083]
[1761692337810,0.42199,113250.0,113240.0,0.24219083]
[1761692338011,0.57644011,113250.0,113240.0,0.24219083]
[1761692345523,0.42199,113250.0,113240.0,0.24219083]
[1761692345723,0.57644011,113250.0,113240.0,0.24219083]
[1761692346219,0.57380011,113250.0,113240.0,0.24219083]